[Event "*** Titled Tuesday Blitz"]
[Site "Chess.com"]
[Date "2019.01.01"]
[Round "5"]
[White "oskariot"]
[Black "xxysoul6"]
[Result "1/2-1/2"]
[WhiteElo "2566"]
[BlackElo "2906"]
[TimeControl "180+2"]
[EndTime "14:11:33 PST"]
[Termination "Game drawn by repetition"]

1. c4 {[%clk 0:03:01.9]} 1... g6 {[%clk 0:02:59.2]} 2. Nc3 {[%clk 0:03:02]} 2...
c5 {[%clk 0:02:57.1]} 3. g3 {[%clk 0:03:02.3]} 3... Bg7 {[%clk 0:02:58]} 4. Bg2
{[%clk 0:03:01.8]} 4... Nc6 {[%clk 0:02:59.2]} 5. Nf3 {[%clk 0:02:56.8]} 5... d6
{[%clk 0:02:57.7]} 6. O-O {[%clk 0:02:57.7]} 6... e6 {[%clk 0:02:59.2]} 7. a3
{[%clk 0:02:51.1]} 7... Nge7 {[%clk 0:02:59.8]} 8. Rb1 {[%clk 0:02:47.6]} 8...
b6 {[%clk 0:03:00.5]} 9. b4 {[%clk 0:02:46.5]} 9... Bb7 {[%clk 0:03:01.9]} 10.
b5 {[%clk 0:01:56.3]} 10... Na5 {[%clk 0:03:03.1]} 11. Qa4 {[%clk 0:01:50]}
11... O-O {[%clk 0:03:03.4]} 12. Bb2 {[%clk 0:01:50.9]} 12... d5 {[%clk
0:02:46.9]} 13. d3 {[%clk 0:01:36.9]} 13... d4 {[%clk 0:02:46.2]} 14. Na2 {[%clk
0:01:27]} 14... Nf5 {[%clk 0:02:42.7]} 15. Qc2 {[%clk 0:01:19.1]} 15... e5
{[%clk 0:02:42.6]} 16. Nc1 {[%clk 0:01:16]} 16... Nd6 {[%clk 0:02:43.7]} 17. Nb3
{[%clk 0:00:56.6]} 17... Nxb3 {[%clk 0:02:39.5]} 18. Qxb3 {[%clk 0:00:57.4]}
18... e4 {[%clk 0:02:40.8]} 19. Nd2 {[%clk 0:00:47.4]} 19... f5 {[%clk 0:02:41]}
20. Qc2 {[%clk 0:00:45.1]} 20... Qe7 {[%clk 0:02:41.6]} 21. Rbe1 {[%clk
0:00:45]} 21... Rae8 {[%clk 0:02:42.5]} 22. Bc1 {[%clk 0:00:43]} 22... e3 {[%clk
0:02:41.5]} 23. Nf3 {[%clk 0:00:39.9]} 23... exf2+ {[%clk 0:02:41.9]} 24. Rxf2
{[%clk 0:00:41]} 24... Nf7 {[%clk 0:02:36.5]} 25. Nh4 {[%clk 0:00:22.9]} 25...
Bxg2 {[%clk 0:02:36.8]} 26. Nxg2 {[%clk 0:00:22.9]} 26... Qd7 {[%clk 0:02:38.3]}
27. Ref1 {[%clk 0:00:20.1]} 27... Re7 {[%clk 0:02:38.5]} 28. Nf4 {[%clk
0:00:18.1]} 28... Rfe8 {[%clk 0:02:38]} 29. Nd5 {[%clk 0:00:18.9]} 29... Re6
{[%clk 0:02:39.5]} 30. Bf4 {[%clk 0:00:15.7]} 30... Ne5 {[%clk 0:02:38.8]} 31.
Qd2 {[%clk 0:00:08]} 31... Ng4 {[%clk 0:02:38.8]} 32. Rg2 {[%clk 0:00:08.4]}
32... Rc8 {[%clk 0:02:28.4]} 33. Bg5 {[%clk 0:00:06.4]} 33... Ne5 {[%clk
0:02:16]} 34. h3 {[%clk 0:00:04.7]} 34... Nf7 {[%clk 0:02:16.6]} 35. Bf4 {[%clk
0:00:05.2]} 35... h6 {[%clk 0:02:15.2]} 36. h4 {[%clk 0:00:06.6]} 36... Kh7
{[%clk 0:02:14.8]} 37. g4 {[%clk 0:00:07.8]} 37... fxg4 {[%clk 0:02:14.1]} 38.
Rxg4 {[%clk 0:00:09.7]} 38... Rce8 {[%clk 0:02:12.8]} 39. Rg2 {[%clk 0:00:10.8]}
39... Nd6 {[%clk 0:02:11.1]} 40. Bxd6 {[%clk 0:00:11]} 40... Rxd6 {[%clk
0:02:09.6]} 41. Qe1 {[%clk 0:00:11.1]} 41... Rde6 {[%clk 0:02:08.2]} 42. Qg3
{[%clk 0:00:12]} 42... Kh8 {[%clk 0:01:30.7]} 43. Qg4 {[%clk 0:00:08.4]} 43...
Be5 {[%clk 0:01:18.4]} 44. Nf6 {[%clk 0:00:06.7]} 44... Bxf6 {[%clk 0:01:18.9]}
45. Rxf6 {[%clk 0:00:07.8]} 45... Qe7 {[%clk 0:01:19.9]} 46. Rxg6 {[%clk
0:00:07.5]} 46... Qf7 {[%clk 0:01:13.6]} 47. Rxe6 {[%clk 0:00:06.5]} 47... Rxe6
{[%clk 0:01:14.8]} 48. Rf2 {[%clk 0:00:06.8]} 48... Qg7 {[%clk 0:01:05.4]} 49.
Qxg7+ {[%clk 0:00:07.4]} 49... Kxg7 {[%clk 0:01:07.3]} 50. Rg2+ {[%clk
0:00:07.5]} 50... Kf7 {[%clk 0:01:07.8]} 51. Kf2 {[%clk 0:00:09]} 51... Re3
{[%clk 0:01:06]} 52. Rg3 {[%clk 0:00:10]} 52... Re5 {[%clk 0:01:05.8]} 53. e3
{[%clk 0:00:11.2]} 53... dxe3+ {[%clk 0:01:05.1]} 54. Rxe3 {[%clk 0:00:13.1]}
54... Rh5 {[%clk 0:01:04.1]} 55. Re4 {[%clk 0:00:14]} 55... Kf6 {[%clk
0:01:04.3]} 56. Kg3 {[%clk 0:00:14.8]} 56... Rf5 {[%clk 0:01:03.6]} 57. Rf4
{[%clk 0:00:15.6]} 57... h5 {[%clk 0:01:05]} 58. Kf3 {[%clk 0:00:16.1]} 58...
Ke5 {[%clk 0:01:06.2]} 59. Rxf5+ {[%clk 0:00:10.9]} 59... Kxf5 {[%clk
0:01:08.1]} 60. a4 {[%clk 0:00:09.5]} 60... Ke5 {[%clk 0:01:08.3]} 61. Ke3
{[%clk 0:00:08.9]} 61... Kf5 {[%clk 0:01:09.8]} 62. Kf3 {[%clk 0:00:06.8]} 62...
Ke5 {[%clk 0:01:11.3]} 63. Ke3 {[%clk 0:00:07.4]} 63... Kf5 {[%clk 0:01:12.9]}
64. Kf3 {[%clk 0:00:06.5]} 64... Ke5 {[%clk 0:01:14.2]} 65. Ke3 {[%clk
0:00:07.8]} 65... Kf5 {[%clk 0:01:15.6]} 1/2-1/2

[Event "*** Titled Tuesday Blitz"]
[Site "Chess.com"]
[Date "2019.01.01"]
[Round "5"]
[White "TrimitziosP7"]
[Black "VladDobrov"]
[Result "1-0"]
[WhiteElo "2629"]
[BlackElo "2826"]
[TimeControl "180+2"]
[EndTime "14:11:36 PST"]
[Termination "TrimitziosP7 won by resignation"]

1. Nf3 {[%clk 0:03:01.9]} 1... d5 {[%clk 0:02:55.9]} 2. c4 {[%clk 0:03:02.2]}
2... d4 {[%clk 0:02:57.1]} 3. g3 {[%clk 0:02:53.3]} 3... Nc6 {[%clk 0:02:48.2]}
4. Bg2 {[%clk 0:02:51.4]} 4... e5 {[%clk 0:02:49.1]} 5. d3 {[%clk 0:02:50.1]}
5... Bb4+ {[%clk 0:02:41.8]} 6. Bd2 {[%clk 0:02:46.2]} 6... Be7 {[%clk
0:02:41.4]} 7. b4 {[%clk 0:02:38.3]} 7... e4 {[%clk 0:02:42.2]} 8. dxe4 {[%clk
0:02:24.1]} 8... Bxb4 {[%clk 0:02:42.3]} 9. O-O {[%clk 0:02:21.8]} 9... Bc5
{[%clk 0:02:28.8]} 10. Bf4 {[%clk 0:02:16.6]} 10... Nge7 {[%clk 0:02:28.8]} 11.
Nbd2 {[%clk 0:02:17.5]} 11... Ng6 {[%clk 0:01:49.5]} 12. Nb3 {[%clk 0:02:17.7]}
12... Nxf4 {[%clk 0:01:46.9]} 13. gxf4 {[%clk 0:02:06.3]} 13... Bb4 {[%clk
0:01:39.2]} 14. Nfxd4 {[%clk 0:02:01.1]} 14... Nxd4 {[%clk 0:01:36.4]} 15. Qxd4
{[%clk 0:02:03]} 15... Qxd4 {[%clk 0:01:36]} 16. Nxd4 {[%clk 0:02:04.9]} 16...
O-O {[%clk 0:01:29.9]} 17. e3 {[%clk 0:02:05.1]} 17... Rd8 {[%clk 0:01:12.8]}
18. Rab1 {[%clk 0:01:59.1]} 18... Bc5 {[%clk 0:00:55.7]} 19. Nb3 {[%clk
0:01:58.7]} 19... Ba3 {[%clk 0:00:54.1]} 20. Bf3 {[%clk 0:01:53.3]} 20... a5
{[%clk 0:00:53.2]} 21. Rfd1 {[%clk 0:01:53.3]} 21... Re8 {[%clk 0:00:44.8]} 22.
Kg2 {[%clk 0:01:49.3]} 22... Ra6 {[%clk 0:00:45.4]} 23. e5 {[%clk 0:01:47.4]}
23... Rg6+ {[%clk 0:00:42.2]} 24. Kh1 {[%clk 0:01:41.2]} 24... b6 {[%clk
0:00:43.2]} 25. Rg1 {[%clk 0:01:39]} 25... Rxg1+ {[%clk 0:00:41.9]} 26. Rxg1
{[%clk 0:01:40.9]} 26... Rd8 {[%clk 0:00:33.9]} 27. Rd1 {[%clk 0:01:40.7]} 27...
Rxd1+ {[%clk 0:00:34.9]} 28. Bxd1 {[%clk 0:01:42.6]} 28... Bf5 {[%clk
0:00:36.1]} 29. Nd4 {[%clk 0:01:39.9]} 29... Bb1 {[%clk 0:00:36.9]} 30. Bb3
{[%clk 0:01:35.9]} 30... Kf8 {[%clk 0:00:33.3]} 31. Nb5 {[%clk 0:01:36.3]} 31...
Bb4 {[%clk 0:00:25.5]} 32. Nxc7 {[%clk 0:01:37.1]} 32... a4 {[%clk 0:00:25.4]}
33. Bxa4 {[%clk 0:01:37.9]} 33... Bxa2 {[%clk 0:00:26.8]} 34. Bb5 {[%clk
0:01:38]} 34... Bb1 {[%clk 0:00:26.7]} 35. Nd5 {[%clk 0:01:37.6]} 35... Be4+
{[%clk 0:00:27.7]} 36. Kg1 {[%clk 0:01:38.7]} 36... Bc5 {[%clk 0:00:25.6]} 37.
Kf1 {[%clk 0:01:38.9]} 37... Bf3 {[%clk 0:00:25.5]} 38. Ba4 {[%clk 0:01:36.7]}
38... h5 {[%clk 0:00:24.9]} 39. Nc3 {[%clk 0:01:34.4]} 39... h4 {[%clk 0:00:25]}
40. Bd1 {[%clk 0:01:33.2]} 40... Bc6 {[%clk 0:00:25.4]} 41. Ke2 {[%clk
0:01:32.7]} 41... h3 {[%clk 0:00:21.5]} 42. Kd3 {[%clk 0:01:32.7]} 42... Bg2
{[%clk 0:00:21.5]} 43. Ne4 {[%clk 0:01:26.2]} 43... Bb4 {[%clk 0:00:22.5]} 44.
Nd2 {[%clk 0:01:22.6]} 44... Ke7 {[%clk 0:00:20.9]} 45. Bg4 {[%clk 0:01:21.8]}
45... f6 {[%clk 0:00:14.4]} 46. exf6+ {[%clk 0:01:21.6]} 46... Kxf6 {[%clk
0:00:14.4]} 47. Ne4+ {[%clk 0:01:21.5]} 47... Bxe4+ {[%clk 0:00:11.5]} 48. Kxe4
{[%clk 0:01:23.4]} 48... Be1 {[%clk 0:00:12.5]} 49. Kf3 {[%clk 0:01:23.7]} 49...
Bb4 {[%clk 0:00:13.7]} 50. Bxh3 {[%clk 0:01:24.7]} 50... Bc5 {[%clk 0:00:15.2]}
51. e4 {[%clk 0:01:18.7]} 51... Ke7 {[%clk 0:00:12.3]} 52. e5 {[%clk 0:01:18.2]}
52... Bd4 {[%clk 0:00:13.5]} 53. Bf5 {[%clk 0:01:15.9]} 53... Bc5 {[%clk
0:00:14.9]} 54. Kg4 {[%clk 0:01:14]} 54... Bxf2 {[%clk 0:00:15.7]} 55. Be4
{[%clk 0:01:13.3]} 55... Be3 {[%clk 0:00:17]} 56. h4 {[%clk 0:01:06]} 56... Bd2
{[%clk 0:00:17.6]} 57. Bd5 {[%clk 0:01:04.4]} 57... Bc1 {[%clk 0:00:18.2]} 58.
h5 {[%clk 0:01:05.3]} 58... Bd2 {[%clk 0:00:18.9]} 59. h6 {[%clk 0:01:00.7]}
59... gxh6 {[%clk 0:00:20]} 60. f5 {[%clk 0:01:01.8]} 60... Bc3 {[%clk
0:00:10.3]} 61. f6+ {[%clk 0:01:02.7]} 61... Kd7 {[%clk 0:00:07.7]} 62. Kf5
{[%clk 0:01:03.7]} 62... h5 {[%clk 0:00:08.7]} 63. e6+ {[%clk 0:01:04.5]} 63...
Kd6 {[%clk 0:00:10.2]} 64. e7 {[%clk 0:01:05.2]} 1-0

[Event "*** Titled Tuesday Blitz"]
[Site "Chess.com"]
[Date "2019.01.01"]
[Round "5"]
[White "JMatias"]
[Black "Lion_DL"]
[Result "1-0"]
[WhiteElo "2344"]
[BlackElo "2376"]
[TimeControl "180+2"]
[EndTime "14:11:38 PST"]
[Termination "JMatias won by resignation"]

1. e3 {[%clk 0:03:01.9]} 1... Nf6 {[%clk 0:02:58.8]} 2. c4 {[%clk 0:02:59.8]}
2... g6 {[%clk 0:02:58.9]} 3. Nf3 {[%clk 0:02:57.8]} 3... Bg7 {[%clk 0:03:00.3]}
4. d4 {[%clk 0:02:57.6]} 4... O-O {[%clk 0:03:00.6]} 5. Be2 {[%clk 0:02:57.6]}
5... d6 {[%clk 0:03:00.1]} 6. Nc3 {[%clk 0:02:56.4]} 6... Nbd7 {[%clk
0:02:59.3]} 7. O-O {[%clk 0:02:57.1]} 7... e5 {[%clk 0:03:00.1]} 8. Qc2 {[%clk
0:02:53.8]} 8... Re8 {[%clk 0:02:53]} 9. b4 {[%clk 0:02:51]} 9... c6 {[%clk
0:02:50.4]} 10. Bb2 {[%clk 0:02:45]} 10... Qc7 {[%clk 0:02:41.7]} 11. Rfd1
{[%clk 0:02:44.4]} 11... Nf8 {[%clk 0:02:36.8]} 12. d5 {[%clk 0:02:35.4]} 12...
Bf5 {[%clk 0:02:29.1]} 13. e4 {[%clk 0:02:34.6]} 13... Bg4 {[%clk 0:02:29.9]}
14. h3 {[%clk 0:02:26.1]} 14... Bxf3 {[%clk 0:02:29.3]} 15. Bxf3 {[%clk
0:02:28]} 15... Rac8 {[%clk 0:02:24.5]} 16. Qa4 {[%clk 0:02:25.8]} 16... a6
{[%clk 0:02:23.2]} 17. dxc6 {[%clk 0:02:17.7]} 17... Qxc6 {[%clk 0:02:15.7]} 18.
Qxc6 {[%clk 0:02:17.8]} 18... Rxc6 {[%clk 0:02:16.4]} 19. Be2 {[%clk 0:02:07.1]}
19... Ne6 {[%clk 0:02:11.3]} 20. f3 {[%clk 0:02:07.7]} 20... Nd4 {[%clk
0:02:11.7]} 21. Bd3 {[%clk 0:02:06.7]} 21... Rec8 {[%clk 0:02:11]} 22. Nd5
{[%clk 0:02:03.6]} 22... Nxd5 {[%clk 0:02:08.7]} 23. cxd5 {[%clk 0:02:00.3]}
23... R6c7 {[%clk 0:02:08.1]} 24. Rac1 {[%clk 0:01:58.5]} 24... Bh6 {[%clk
0:02:08.8]} 25. Rxc7 {[%clk 0:01:56.4]} 25... Rxc7 {[%clk 0:02:10.3]} 26. Kf2
{[%clk 0:01:56.6]} 26... Kf8 {[%clk 0:02:06.6]} 27. g3 {[%clk 0:01:53.3]} 27...
Ke7 {[%clk 0:02:01.8]} 28. f4 {[%clk 0:01:49.9]} 28... f6 {[%clk 0:02:01.5]} 29.
Rc1 {[%clk 0:01:47.7]} 29... Rxc1 {[%clk 0:01:54.8]} 30. Bxc1 {[%clk 0:01:49.6]}
30... exf4 {[%clk 0:01:53.9]} 31. gxf4 {[%clk 0:01:49.5]} 31... f5 {[%clk
0:01:54.8]} 32. Ke3 {[%clk 0:01:40.9]} 32... fxe4 {[%clk 0:01:55.3]} 33. Kxe4
{[%clk 0:01:33.7]} 33... Nf5 {[%clk 0:01:51]} 34. Bd2 {[%clk 0:01:24.5]} 34...
Kd7 {[%clk 0:01:49.6]} 35. a4 {[%clk 0:01:24]} 35... Ne7 {[%clk 0:01:42.2]} 36.
b5 {[%clk 0:01:19.8]} 36... axb5 {[%clk 0:01:42.3]} 37. Bxb5+ {[%clk 0:01:20]}
37... Kc7 {[%clk 0:01:42.8]} 38. Ba5+ {[%clk 0:01:19.3]} 38... b6 {[%clk
0:01:43.3]} 39. Bc3 {[%clk 0:01:19.1]} 39... Nf5 {[%clk 0:01:39.6]} 40. Be1
{[%clk 0:01:13.4]} 40... Ne7 {[%clk 0:01:31.9]} 41. h4 {[%clk 0:01:12.4]} 41...
Nf5 {[%clk 0:01:30.1]} 42. h5 {[%clk 0:01:12.2]} 42... Ne7 {[%clk 0:01:29.3]}
43. Be2 {[%clk 0:01:11.4]} 43... gxh5 {[%clk 0:01:21]} 44. Bxh5 {[%clk
0:01:13.3]} 44... Ng6 {[%clk 0:01:22.4]} 45. Bg3 {[%clk 0:01:12.2]} 45... Ne7
{[%clk 0:01:14.3]} 46. Bf7 {[%clk 0:01:10.5]} 46... Bg7 {[%clk 0:01:13.6]} 47.
f5 {[%clk 0:01:07.6]} 47... Bf6 {[%clk 0:01:14]} 48. Bf4 {[%clk 0:01:00.1]}
48... Kb7 {[%clk 0:01:12.8]} 49. Bxd6 {[%clk 0:00:57.4]} 49... Ka6 {[%clk
0:01:11.9]} 50. Be8 {[%clk 0:00:56.5]} 50... Ka5 {[%clk 0:01:11]} 51. Bb5 {[%clk
0:00:55.7]} 51... h5 {[%clk 0:01:08.3]} 52. Bh2 {[%clk 0:00:53.4]} 52... Kb4
{[%clk 0:01:09]} 53. d6 {[%clk 0:00:53.9]} 53... Ng8 {[%clk 0:01:08.8]} 54. Kd5
{[%clk 0:00:54]} 54... h4 {[%clk 0:01:08.7]} 55. d7 {[%clk 0:00:54.9]} 55... h3
{[%clk 0:01:08.7]} 56. Bd6+ {[%clk 0:00:54.5]} 56... Kc3 {[%clk 0:01:08.9]} 57.
Bf1 {[%clk 0:00:51.6]} 57... Kb3 {[%clk 0:01:08.2]} 58. Bxh3 {[%clk 0:00:51.9]}
58... Kxa4 {[%clk 0:01:08.9]} 59. Bc7 {[%clk 0:00:49.5]} 59... b5 {[%clk
0:01:09.3]} 60. d8=Q {[%clk 0:00:50.2]} 60... Bxd8 {[%clk 0:01:09.3]} 61. Bxd8
{[%clk 0:00:52.1]} 61... b4 {[%clk 0:01:10.4]} 62. Kc4 {[%clk 0:00:48.4]} 62...
b3 {[%clk 0:01:11]} 63. f6 {[%clk 0:00:44]} 63... Nxf6 {[%clk 0:01:09.6]} 64.
Bxf6 {[%clk 0:00:44.4]} 64... Ka3 {[%clk 0:01:11.2]} 65. Bf5 {[%clk 0:00:41.9]}
65... Ka2 {[%clk 0:01:12.2]} 66. Kc3 {[%clk 0:00:38.2]} 66... b2 {[%clk
0:01:13]} 67. Be6+ {[%clk 0:00:39.5]} 67... Ka1 {[%clk 0:01:11]} 68. Kb3 {[%clk
0:00:39.7]} 68... Kb1 {[%clk 0:01:11.5]} 69. Bf5+ {[%clk 0:00:40.8]} 69... Kc1
{[%clk 0:01:12.4]} 70. Bxb2+ {[%clk 0:00:42.7]} 1-0

[Event "*** Titled Tuesday Blitz"]
[Site "Chess.com"]
[Date "2019.01.01"]
[Round "5"]
[White "iLuusions"]
[Black "Chessialist"]
[Result "0-1"]
[WhiteElo "2566"]
[BlackElo "2536"]
[TimeControl "180+2"]
[EndTime "14:11:41 PST"]
[Termination "Chessialist won by resignation"]

1. d4 {[%clk 0:03:01.5]} 1... Nf6 {[%clk 0:03:00.4]} 2. c4 {[%clk 0:03:03.4]}
2... c6 {[%clk 0:03:01.2]} 3. Nf3 {[%clk 0:03:05.3]} 3... d5 {[%clk 0:03:02]} 4.
Qb3 {[%clk 0:03:05.1]} 4... dxc4 {[%clk 0:03:02]} 5. Qxc4 {[%clk 0:03:07]} 5...
Bf5 {[%clk 0:03:03.3]} 6. g3 {[%clk 0:03:06.6]} 6... Nbd7 {[%clk 0:03:04.4]} 7.
Bg2 {[%clk 0:03:07.7]} 7... e6 {[%clk 0:03:05.7]} 8. O-O {[%clk 0:03:08.6]} 8...
Be7 {[%clk 0:03:07.2]} 9. Qb3 {[%clk 0:03:10]} 9... Qb6 {[%clk 0:03:07.1]} 10.
Nbd2 {[%clk 0:03:11.5]} 10... O-O {[%clk 0:03:03.5]} 11. Nc4 {[%clk 0:03:12.7]}
11... Qxb3 {[%clk 0:03:04.5]} 12. axb3 {[%clk 0:03:14.6]} 12... Be4 {[%clk
0:02:57.4]} 13. Bd2 {[%clk 0:02:31.2]} 13... c5 {[%clk 0:02:57]} 14. Bc3 {[%clk
0:02:20.2]} 14... Rfc8 {[%clk 0:02:42.7]} 15. Nfe5 {[%clk 0:02:16.7]} 15... Bxg2
{[%clk 0:02:41.2]} 16. Kxg2 {[%clk 0:02:18.6]} 16... Nxe5 {[%clk 0:02:36.5]} 17.
dxe5 {[%clk 0:02:10.8]} 17... Nd5 {[%clk 0:02:34]} 18. e4 {[%clk 0:02:10.7]}
18... Nb6 {[%clk 0:01:45.1]} 19. Na5 {[%clk 0:01:49]} 19... Rc7 {[%clk
0:01:42.9]} 20. Rfd1 {[%clk 0:01:50.2]} 20... Kf8 {[%clk 0:01:38.4]} 21. f4
{[%clk 0:01:50.8]} 21... Ke8 {[%clk 0:01:38.5]} 22. f5 {[%clk 0:01:48.9]} 22...
Nd7 {[%clk 0:01:26.4]} 23. Nc4 {[%clk 0:01:45.4]} 23... Kf8 {[%clk 0:01:01.9]}
24. h4 {[%clk 0:01:43.5]} 24... b5 {[%clk 0:00:58.6]} 25. Ba5 {[%clk 0:01:33.8]}
25... Rb7 {[%clk 0:00:41.8]} 26. Nd6 {[%clk 0:01:33.7]} 26... Bxd6 {[%clk
0:00:42.6]} 27. exd6 {[%clk 0:01:35.6]} 27... exf5 {[%clk 0:00:38.8]} 28. exf5
{[%clk 0:01:37.5]} 28... Re8 {[%clk 0:00:39.6]} 29. Kf2 {[%clk 0:01:24.2]} 29...
f6 {[%clk 0:00:40.6]} 30. Rd5 {[%clk 0:01:20.7]} 30... Re5 {[%clk 0:00:39.5]}
31. Rad1 {[%clk 0:01:08.8]} 31... Ke8 {[%clk 0:00:40]} 32. Bc7 {[%clk
0:01:08.4]} 32... c4 {[%clk 0:00:27.5]} 33. Kf3 {[%clk 0:00:46.5]} 33... Rxd5
{[%clk 0:00:21.6]} 34. Rxd5 {[%clk 0:00:48.4]} 34... Ne5+ {[%clk 0:00:23]} 35.
Ke4 {[%clk 0:00:48.5]} 35... Kd7 {[%clk 0:00:24.4]} 36. Kd4 {[%clk 0:00:46.8]}
36... cxb3 {[%clk 0:00:24.2]} 37. Kc3 {[%clk 0:00:47.3]} 37... a5 {[%clk
0:00:20.2]} 38. Kxb3 {[%clk 0:00:47.8]} 38... a4+ {[%clk 0:00:20.4]} 39. Kb4
{[%clk 0:00:41.7]} 39... Nc6+ {[%clk 0:00:21.5]} 40. Kc5 {[%clk 0:00:38.5]}
40... b4 {[%clk 0:00:20.3]} 41. Rd3 {[%clk 0:00:39.3]} 41... a3 {[%clk
0:00:21.2]} 42. bxa3 {[%clk 0:00:38]} 42... b3 {[%clk 0:00:22.8]} 43. Rd1 {[%clk
0:00:39.9]} 43... Ne5 {[%clk 0:00:23.5]} 44. Kd4 {[%clk 0:00:36.5]} 44... b2
{[%clk 0:00:22.8]} 45. Rb1 {[%clk 0:00:37.2]} 45... Rb3 {[%clk 0:00:24.5]} 46.
Ba5 {[%clk 0:00:23.6]} 46... Rxa3 {[%clk 0:00:24.3]} 47. Bc3 {[%clk 0:00:21.2]}
47... Ra4+ {[%clk 0:00:23.7]} 48. Ke3 {[%clk 0:00:16]} 48... Ra3 {[%clk
0:00:18.7]} 49. Kd2 {[%clk 0:00:16.2]} 49... Nc4+ {[%clk 0:00:16.9]} 50. Kc2
{[%clk 0:00:17.6]} 50... Ra6 {[%clk 0:00:13.8]} 51. Bxb2 {[%clk 0:00:16.4]}
51... Rxd6 {[%clk 0:00:14.8]} 52. Bc3 {[%clk 0:00:16]} 52... Na3+ {[%clk
0:00:15.2]} 53. Kb2 {[%clk 0:00:13.9]} 53... Nxb1 {[%clk 0:00:16.8]} 54. Kxb1
{[%clk 0:00:15.8]} 54... Rd3 {[%clk 0:00:18.1]} 0-1

[Event "*** Titled Tuesday Blitz"]
[Site "Chess.com"]
[Date "2019.01.01"]
[Round "5"]
[White "rikyshi"]
[Black "harperchesstt"]
[Result "1-0"]
[WhiteElo "2200"]
[BlackElo "2121"]
[TimeControl "180+2"]
[EndTime "14:11:58 PST"]
[Termination "rikyshi won by resignation"]

1. d4 {[%clk 0:03:01.9]} 1... Nf6 {[%clk 0:03:00.1]} 2. Nc3 {[%clk 0:03:00.8]}
2... g6 {[%clk 0:03:01]} 3. e4 {[%clk 0:03:01.1]} 3... c5 {[%clk 0:03:01.6]} 4.
Be3 {[%clk 0:02:59.7]} 4... cxd4 {[%clk 0:02:59.2]} 5. Bxd4 {[%clk 0:03:01.2]}
5... Nc6 {[%clk 0:02:56.7]} 6. Be3 {[%clk 0:03:02.3]} 6... d6 {[%clk 0:02:56.5]}
7. f3 {[%clk 0:03:03.7]} 7... Bg7 {[%clk 0:02:57.7]} 8. Qd2 {[%clk 0:03:05.2]}
8... O-O {[%clk 0:02:59.3]} 9. O-O-O {[%clk 0:03:06.6]} 9... Be6 {[%clk
0:02:58.6]} 10. g4 {[%clk 0:03:07.7]} 10... Qa5 {[%clk 0:02:59.1]} 11. Kb1
{[%clk 0:03:07.4]} 11... Rfc8 {[%clk 0:02:58.6]} 12. Nge2 {[%clk 0:03:06.8]}
12... Ne5 {[%clk 0:02:50.4]} 13. Nd4 {[%clk 0:03:03.1]} 13... Rxc3 {[%clk
0:02:43.8]} 14. Nxe6 {[%clk 0:03:04.1]} 14... fxe6 {[%clk 0:02:38]} 15. Qxc3
{[%clk 0:03:04.5]} 15... Qxc3 {[%clk 0:02:38.3]} 16. bxc3 {[%clk 0:03:05.3]}
16... Nxf3 {[%clk 0:02:40]} 17. Bc4 {[%clk 0:03:01.5]} 17... Nxe4 {[%clk
0:02:31.4]} 18. Bxe6+ {[%clk 0:03:02]} 18... Kh8 {[%clk 0:02:32.5]} 19. Rd3
{[%clk 0:02:56]} 19... Nxc3+ {[%clk 0:02:28.9]} 20. Kc1 {[%clk 0:02:56.6]} 20...
Ne2+ {[%clk 0:01:48.4]} 21. Kd1 {[%clk 0:02:27.9]} 21... Nc3+ {[%clk 0:01:45.2]}
22. Kc1 {[%clk 0:02:19.8]} 22... Nb5 {[%clk 0:01:34.5]} 23. Rf1 {[%clk
0:02:00.9]} 23... Ne5 {[%clk 0:01:31.5]} 24. Rb3 {[%clk 0:02:01.3]} 24... Nc7
{[%clk 0:01:32.5]} 25. Bf7 {[%clk 0:01:47.5]} 25... b6 {[%clk 0:00:28.8]} 26.
Bd4 {[%clk 0:01:35.7]} 26... Na6 {[%clk 0:00:21.5]} 27. Bd5 {[%clk 0:01:33]}
27... Rc8 {[%clk 0:00:21.3]} 28. Bxe5 {[%clk 0:01:28.3]} 28... Bxe5 {[%clk
0:00:18.9]} 29. Bb7 {[%clk 0:01:29.2]} 29... Rc5 {[%clk 0:00:08.3]} 30. Bxa6
{[%clk 0:01:27.2]} 30... Ra5 {[%clk 0:00:09.9]} 31. Bd3 {[%clk 0:01:22.4]} 31...
Rxa2 {[%clk 0:00:10.8]} 32. Kd2 {[%clk 0:01:24.1]} 32... Ra5 {[%clk 0:00:10.7]}
33. h4 {[%clk 0:01:22.4]} 33... Kg7 {[%clk 0:00:11.4]} 34. h5 {[%clk 0:01:23.3]}
34... gxh5 {[%clk 0:00:12.5]} 35. gxh5 {[%clk 0:01:24.3]} 35... Kh6 {[%clk
0:00:14.4]} 36. Rf7 {[%clk 0:01:24.5]} 36... Bf6 {[%clk 0:00:15.3]} 37. Rxh7+
{[%clk 0:01:25.4]} 37... Kg5 {[%clk 0:00:17]} 38. h6 {[%clk 0:01:25.2]} 38...
Kh5 {[%clk 0:00:15.5]} 39. Rf7 {[%clk 0:01:20.4]} 39... Bg5+ {[%clk 0:00:16.4]}
40. Ke2 {[%clk 0:01:20.3]} 40... Kxh6 {[%clk 0:00:16.8]} 41. Rb5 {[%clk
0:01:19.3]} 41... Rxb5 {[%clk 0:00:16.5]} 42. Bxb5 {[%clk 0:01:20.1]} 42... Bf6
{[%clk 0:00:16.8]} 43. Rf8 {[%clk 0:01:20.4]} 43... Kg5 {[%clk 0:00:18.2]} 44.
Ra8 {[%clk 0:01:20.5]} 44... a5 {[%clk 0:00:19.4]} 45. Ra6 {[%clk 0:01:21.4]}
45... Bd4 {[%clk 0:00:20.6]} 46. Kd3 {[%clk 0:01:22.7]} 46... Bc5 {[%clk
0:00:21.7]} 47. Ke4 {[%clk 0:01:22.7]} 47... e6 {[%clk 0:00:23.1]} 48. c4 {[%clk
0:01:22.9]} 48... Kf6 {[%clk 0:00:25]} 49. Ra7 {[%clk 0:01:23.5]} 49... Bb4
{[%clk 0:00:23.1]} 50. Ra8 {[%clk 0:01:17.7]} 50... Bc5 {[%clk 0:00:25]} 51. Re8
{[%clk 0:01:18.1]} 51... Kf7 {[%clk 0:00:23.3]} 52. Bd7 {[%clk 0:01:02.9]} 52...
Bb4 {[%clk 0:00:15.5]} 53. Rxe6 {[%clk 0:01:01.6]} 53... a4 {[%clk 0:00:16.9]}
54. Rh6 {[%clk 0:00:57]} 54... a3 {[%clk 0:00:18.5]} 55. Rh2 {[%clk 0:00:56.4]}
55... Bc3 {[%clk 0:00:18.3]} 56. Ra2 {[%clk 0:00:51.9]} 56... Bb2 {[%clk
0:00:19.2]} 57. Kd5 {[%clk 0:00:49.1]} 57... Ke7 {[%clk 0:00:21.1]} 58. Bb5
{[%clk 0:00:48.7]} 58... Bc1 {[%clk 0:00:19.7]} 59. Kc6 {[%clk 0:00:40.1]} 59...
Ke6 {[%clk 0:00:21]} 60. Re2+ {[%clk 0:00:37.6]} 60... Kf6 {[%clk 0:00:20.7]}
61. Ba4 {[%clk 0:00:26.9]} 61... Bb2 {[%clk 0:00:17.8]} 62. Bb3 {[%clk
0:00:27.4]} 1-0